fUSD/lending_fUSD_20240814
["ID","MTS","AMOUNT","RATE_DAILY","PERIOD"]
[334861195,1723610413814,-500.0,0.0001452,2]
[334861196,1723610413847,-500.0,0.0001452,2]
[334861197,1723610413883,-500.0,0.0001452,2]
[334861198,1723610413916,-500.0,0.0001452,2]
[334861199,1723610413955,-346.29772846,0.0001452,2]
[334861200,1723610413993,-533.45,0.0001452,2]
[334861201,1723610414029,-500.0,0.0001452,2]
[334861202,1723610414063,-500.0,0.0001452,2]
[334861203,1723610414101,-522.22,0.0001452,2]
[334861204,1723610414138,-562.7,0.0001452,2]
[334861205,1723610414173,-596.31,0.0001452,2]
[334861206,1723610414207,-624.08,0.0001452,2]
[334861207,1723610414242,-1026.54,0.0001452,2]
[334861208,1723610414287,-735.05,0.0001452,2]
[334861209,1723610414366,-500.0,0.0001452,2]
[334861210,1723610414434,-500.0,0.0001452,2]
[334861211,1723610414482,-518.41,0.0001452,2]
[334861212,1723610414517,-500.0,0.0001452,2]
[334861213,1723610414552,-1441.9,0.0001452,2]
[334861214,1723610414586,-500.0,0.0001452,2]
[334861215,1723610414620,-664.26,0.0001452,2]
[334861216,1723610414656,-631.26,0.0001452,2]
[334861217,1723610414690,-551.67,0.0001452,2]
[334861218,1723610414723,-706.5,0.0001452,2]
[334861219,1723610414758,-500.0,0.0001452,2]
[334861220,1723610414796,-500.0,0.0001452,2]
[334861221,1723610414832,-585.17,0.0001452,2]
[334861222,1723610414870,-500.0,0.0001452,2]
[334861223,1723610414904,-654.12,0.0001452,2]
[334861224,1723610414939,-1011.87,0.0001452,2]
[334861225,1723610414973,-500.0,0.0001452,2]
[334861226,1723610415008,-500.0,0.0001452,2]
[334861227,1723610415044,-680.73,0.0001452,2]
[334861228,1723610415079,-797.52,0.0001452,2]
[334861229,1723610415115,-500.0,0.0001452,2]
[334861230,1723610415151,-500.0,0.0001452,2]
[334861231,1723610415189,-910.84,0.0001452,2]
[334861232,1723610415228,-716.3,0.0001452,2]
[334861233,1723610415262,-1061.24,0.0001452,2]
[334861234,1723610415296,-500.0,0.0001452,2]
[334861235,1723610415330,-500.0,0.0001452,2]
[334861236,1723610415363,-528.22,0.0001452,2]
[334861237,1723610415396,-558.86,0.0001452,2]
[334861238,1723610415432,-500.0,0.0001452,2]
[334861239,1723610415465,-500.0,0.0001452,2]
[334861240,1723610415498,-1221.9,0.0001452,2]
[334861241,1723610415531,-541.84,0.0001452,2]
[334861242,1723610415563,-590.98,0.0001452,2]
[334861243,1723610415595,-500.0,0.0001452,2]
[334861244,1723610415628,-619.99,0.0001452,2]
[334861245,1723610415661,-666.86,0.0001452,2]
[334861246,1723610415695,-500.0,0.0001452,2]
[334861247,1723610415728,-500.0,0.0001452,2]
[334861248,1723610415761,-500.0,0.0001452,2]
[334861249,1723610415793,-577.56,0.0001452,2]
[334861250,1723610415826,-500.0,0.0001452,2]
[334861251,1723610415859,-500.0,0.0001452,2]
[334861252,1723610415892,-1105.13,0.0001452,2]
[334861253,1723610415925,-550.22,0.0001452,2]
[334861254,1723610415958,-549.11,0.0001452,2]
[334861255,1723610415992,-544.03,0.0001452,2]
[334861256,1723610416027,-500.0,0.0001452,2]
[334861257,1723610416060,-698.56,0.0001452,2]
[334861258,1723610416094,-500.0,0.0001452,2]
[334861259,1723610416127,-500.0,0.0001452,2]
[334861260,1723610416162,-500.0,0.0001452,2]
[334861261,1723610416195,-500.0,0.0001452,2]
[334861262,1723610416227,-500.0,0.0001452,2]
[334861263,1723610416262,-1053.8,0.0001452,2]
[334861264,1723610416295,-500.0,0.0001452,2]
[334861265,1723610416328,-500.0,0.0001452,2]
[334861266,1723610416361,-500.0,0.0001452,2]
[334861267,1723610416395,-500.0,0.0001452,2]
[334861268,1723610416429,-576.22,0.0001452,2]
[334861269,1723610416463,-543.1,0.0001452,2]
[334861270,1723610416496,-500.0,0.0001452,2]
[334861271,1723610416532,-500.0,0.0001452,2]
[334861272,1723610416566,-200.0,0.00014576,2]
[334861273,1723610416599,-942.48,0.00014609,2]
[334861274,1723610416634,-8364.38807818,0.00014772,2]
[334861275,1723610416669,-16937.5998991,0.00014772,2]
[334861276,1723610416703,-84687.9994955,0.00014773,2]
[334861277,1723610416947,-715.1,0.00014782,2]
[334861278,1723610416984,-4198.96,0.00014782,2]
[334861279,1723610417020,-500.33,0.00014782,2]
[334861280,1723610417056,-822.53,0.00014782,2]
[334861281,1723610417091,-500.0,0.00014782,2]
[334861282,1723610417129,-1174.46,0.00014782,2]
[334861283,1723610417166,-500.0,0.00014782,2]
[334861284,1723610417202,-1624.42,0.00014782,2]
[334861285,1723610417239,-553.8,0.00014782,2]
[334861286,1723610417274,-536.87,0.00014782,2]
[334861287,1723610417310,-2232.61,0.00014782,2]
[334861288,1723610417346,-615.47,0.00014782,2]
[334861289,1723610417384,-1023.43,0.00014782,2]
[334861290,1723610417420,-1174.36,0.00014782,2]
[334861291,1723610417456,-885.25,0.00014782,2]
[334861292,1723610417494,-4525.21,0.00014782,2]
[334861293,1723610417530,-1618.09,0.00014782,2]
[334861294,1723610417566,-1249.38,0.00014782,2]
[334861295,1723610417605,-878.78,0.00014782,2]
[334861296,1723610417640,-877.53,0.00014782,2]
[334861297,1723610417676,-500.0,0.00014782,2]
[334861298,1723610417709,-1453.56,0.00014782,2]
[334861299,1723610417743,-1569.03,0.00014782,2]
[334861300,1723610417776,-2576.45,0.00014782,2]
[334861301,1723610417813,-1736.48,0.00014782,2]
[334861302,1723610417848,-1490.15,0.00014782,2]
[334861303,1723610417886,-666.01,0.00014782,2]
[334861304,1723610417927,-500.0,0.00014782,2]
[334861305,1723610417967,-500.0,0.00014782,2]
[334861306,1723610418002,-5061.76,0.00014782,2]
[334861307,1723610418042,-34211.12,0.00014782,2]
[334861308,1723610418079,-1150.51,0.00014782,2]
[334861309,1723610418115,-5960.52,0.00014782,2]
[334861310,1723610418151,-4274.64,0.00014782,2]
[334861311,1723610418188,-1755.27,0.00014782,2]
[334861312,1723610418223,-154.456777,0.00014782,2]
[334861313,1723610418260,-50812.7996973,0.00014783,2]
[334861314,1723610418295,-618.63,0.00014783,2]
[334861315,1723610418331,-500.0,0.00014783,2]
[334861316,1723610418366,-500.0,0.00014783,2]
[334861317,1723610418402,-634.28,0.00014783,2]
[334861318,1723610418436,-500.0,0.00014783,2]
[334861319,1723610418471,-500.0,0.00014783,2]
[334861320,1723610418505,-500.0,0.00014783,2]
[334861321,1723610418540,-500.0,0.00014783,2]
[334861322,1723610418574,-500.0,0.00014783,2]
[334861323,1723610418608,-500.0,0.00014783,2]
[334861324,1723610418642,-500.0,0.00014783,2]
[334861325,1723610418676,-500.0,0.00014783,2]
[334861326,1723610418709,-500.0,0.00014783,2]
[334861327,1723610418742,-527.97,0.00014783,2]
[334861328,1723610418776,-872.35,0.00014783,2]
[334861329,1723610418811,-3909.94,0.00014783,2]
[334861330,1723610418844,-467.06,0.00014783,2]
[334861331,1723610418878,-500.0,0.00014783,2]
[334861332,1723610418914,-500.0,0.00014783,2]
[334861333,1723610418951,-500.0,0.00014783,2]
[334861334,1723610418986,-500.0,0.00014783,2]
[334861335,1723610419025,-500.0,0.00014783,2]
[334861336,1723610419059,-500.0,0.00014783,2]
[334861337,1723610419093,-500.0,0.00014783,2]
[334861338,1723610419131,-509.78,0.00014783,2]
[334861339,1723610419166,-636.56,0.00014783,2]
[334861340,1723610419199,-313.36348409,0.00014783,2]
[334861341,1723610419233,-500.0,0.00014783,2]
[334861342,1723610419266,-916.08,0.00014783,2]
[334861343,1723610419300,-900.76,0.00014783,2]
[334861344,1723610419335,-592.32,0.00014783,2]
[334861345,1723610419373,-500.0,0.00014783,2]
[334861346,1723610419409,-500.0,0.00014783,2]
[334861347,1723610419444,-500.0,0.00014783,2]
[334861348,1723610419478,-904.13,0.00014783,2]
[334861349,1723610419514,-500.0,0.00014783,2]
[334861350,1723610419549,-500.0,0.00014783,2]
[334861351,1723610419584,-500.0,0.00014783,2]
[334861352,1723610419619,-500.0,0.00014783,2]
[334861353,1723610419654,-500.0,0.00014783,2]
[334861354,1723610419689,-618.22,0.00014783,2]
[334861355,1723610419730,-500.0,0.00014783,2]
[334861356,1723610419764,-508.49320377,0.00014783,2]
[334861357,1723610419799,-678.28,0.00014783,2]
[334861358,1723610419833,-500.0,0.00014783,2]
[334861359,1723610419867,-500.0,0.00014783,2]
[334861360,1723610419902,-500.0,0.00014783,2]
[334861361,1723610419937,-862.51,0.00014783,2]
[334861362,1723610419972,-841.64,0.00014783,2]
[334861363,1723610420008,-500.0,0.00014783,2]
[334861364,1723610420043,-788.32,0.00014783,2]
[334861365,1723610420078,-708.82,0.00014783,2]
[334861366,1723610420113,-538.38,0.00014783,2]
[334861367,1723610420148,-1037.03,0.00014783,2]
[334861368,1723610420185,-500.0,0.00014783,2]
[334861369,1723610420221,-500.0,0.00014783,2]
[334861370,1723610420257,-822.66,0.00014783,2]
[334861371,1723610420294,-500.0,0.00014783,2]
[334861372,1723610420330,-1393.96,0.00014783,2]
[334861373,1723610420366,-500.0,0.00014783,2]
[334861374,1723610420401,-569.31,0.00014783,2]
[334861375,1723610420436,-500.0,0.00014783,2]
[334861376,1723610420471,-500.0,0.00014783,2]
[334861377,1723610420506,-269.20617314,0.00014783,2]
[334861378,1723610420541,-1250.59,0.00014783,2]
[334861379,1723610420575,-668.58,0.00014783,2]
[334861380,1723610420609,-500.0,0.00014783,2]
[334861381,1723610420643,-500.0,0.00014783,2]
[334861382,1723610420676,-500.0,0.00014783,2]
[334861383,1723610420709,-925.57,0.00014783,2]
[334861384,1723610420744,-550.84,0.00014783,2]
[334861385,1723610420778,-500.0,0.00014783,2]
[334861386,1723610420811,-1967.61,0.00014783,2]
[334861387,1723610420844,-821.64,0.00014783,2]
[334861388,1723610420880,-500.0,0.00014783,2]
[334861389,1723610420914,-500.0,0.00014783,2]
[334861390,1723610420947,-531.99,0.00014783,2]
[334861391,1723610420979,-658.61,0.00014783,2]
[334861392,1723610421011,-500.0,0.00014783,2]
[334861393,1723610421044,-500.0,0.00014783,2]
[334861394,1723610421076,-1523.06,0.00014783,2]
[334861395,1723610421109,-733.77,0.00014783,2]
[334861396,1723610421142,-500.0,0.00014783,2]
[334861397,1723610421175,-1165.1,0.00014783,2]
[334861398,1723610421210,-6839.08,0.00014783,2]
[334861399,1723610421244,-772.94,0.00014783,2]
[334861400,1723610421279,-1690.75,0.00014783,2]
[334861401,1723610421311,-500.0,0.00014783,2]
[334861402,1723610421344,-500.0,0.00014783,2]
[334861403,1723610421377,-500.0,0.00014783,2]
[334861404,1723610421409,-1314.71,0.00014783,2]
[334861405,1723610421442,-527.22353296,0.00014783,2]
[334861406,1723610421474,-291.76239286,0.00014783,2]
[334861407,1723610421508,-923.85,0.00014783,2]
[334861408,1723610421539,-808.040452,0.00014783,2]
[334861409,1723610421571,-868.72,0.00014783,2]
[334861410,1723610421602,-500.0,0.00014783,2]
[334861411,1723610421635,-743.16,0.00014783,2]
[334861412,1723610421667,-689.2,0.00014783,2]
[334861413,1723610421700,-500.0,0.00014783,2]
[334861414,1723610421732,-856.85,0.00014783,2]
[334861415,1723610421764,-1067.94,0.00014783,2]
[334861416,1723610421798,-500.0,0.00014783,2]
[334861417,1723610421833,-500.0,0.00014783,2]
[334861418,1723610421869,-1050.73,0.00014783,2]
[334861419,1723610421903,-727.05,0.00014783,2]
[334861420,1723610421938,-1545.58,0.00014783,2]
[334861421,1723610421974,-500.0,0.00014783,2]
[334861422,1723610422010,-581.34672148,0.00014783,2]
[334861423,1723610422048,-652.85,0.00014783,2]
[334861424,1723610422084,-500.0,0.00014783,2]
[334861425,1723610422125,-7855.01,0.00014783,2]
[334861426,1723610422353,-641.13,0.00014783,2]
[334861427,1723610422423,-1306.39,0.00014783,2]
[334861428,1723610422459,-618.41717234,0.00014783,2]
[334861429,1723610422492,-1322.86,0.00014783,2]
[334861430,1723610422525,-500.0,0.00014783,2]
[334861431,1723610422558,-1158.89,0.00014783,2]
[334861432,1723610422591,-539.01,0.00014783,2]
[334861433,1723610422625,-500.0,0.00014783,2]
[334861434,1723610422656,-500.0,0.00014783,2]
[334861435,1723610422688,-409.94018636,0.00014783,2]
[334861436,1723610422720,-1101.82,0.00014783,2]
[334861437,1723610422753,-500.0,0.00014783,2]
[334861438,1723610422787,-500.0,0.00014783,2]
[334861439,1723610422820,-500.0,0.00014783,2]
[334861440,1723610422853,-500.0,0.00014783,2]
[334861441,1723610422887,-500.0,0.00014783,2]
[334861442,1723610422922,-1392.04,0.00014783,2]
[334861443,1723610422956,-509.86388587,0.00014783,2]
[334861444,1723610422990,-500.0,0.00014783,2]
[334861445,1723610423025,-764.24,0.00014783,2]
[334861446,1723610423066,-500.0,0.00014783,2]
[334861447,1723610423100,-500.0,0.00014783,2]
[334861448,1723610423135,-500.0,0.00014783,2]
[334861449,1723610423169,-500.0,0.00014783,2]
[334861450,1723610423203,-500.0,0.00014783,2]
[334861451,1723610423238,-500.0,0.00014783,2]
[334861452,1723610423271,-764.9,0.00014783,2]
[334861453,1723610423304,-842.04,0.00014783,2]
[334861454,1723610423339,-500.0,0.00014783,2]
[334861455,1723610423373,-500.0,0.00014783,2]
[334861456,1723610423409,-500.0,0.00014783,2]
[334861457,1723610423442,-500.0,0.00014783,2]
[334861458,1723610423475,-2139.75,0.00014783,2]
[334861459,1723610423507,-500.0,0.00014783,2]
[334861460,1723610423541,-500.0,0.00014783,2]
[334861461,1723610423575,-500.0,0.00014783,2]
[334861462,1723610423611,-500.0,0.00014783,2]
[334861463,1723610423646,-500.0,0.00014783,2]
[334861464,1723610423681,-1062.33,0.00014783,2]
[334861465,1723610423716,-636.64,0.00014783,2]
[334861466,1723610423753,-500.0,0.00014783,2]
[334861467,1723610423788,-500.0,0.00014783,2]
[334861468,1723610423829,-500.0,0.00014783,2]
[334861469,1723610423866,-539.95227177,0.00014783,2]
[334861470,1723610423901,-500.0,0.00014783,2]
[334861471,1723610423937,-500.0,0.00014783,2]
[334861472,1723610423974,-500.0,0.00014783,2]
[334861473,1723610424010,-1856.91,0.00014783,2]
[334861474,1723610424046,-500.0,0.00014783,2]
[334861475,1723610424081,-500.0,0.00014783,2]
[334861476,1723610424114,-500.0,0.00014783,2]
[334861477,1723610424148,-500.0,0.00014783,2]
[334861478,1723610424185,-1722.25,0.00014783,2]
[334861479,1723610424218,-883.42,0.00014783,2]
[334861480,1723610424252,-500.0,0.00014783,2]
[334861481,1723610424287,-5839.87,0.00014783,2]
[334861482,1723610424321,-500.0,0.00014783,2]
[334861483,1723610424356,-500.0,0.00014783,2]
[334861484,1723610424391,-500.0,0.00014783,2]
[334861485,1723610424427,-500.0,0.00014783,2]
[334861486,1723610424463,-2427.09,0.00014783,2]
[334861487,1723610424497,-4672.39,0.00014783,2]
[334861488,1723610424532,-500.0,0.00014783,2]
[334861489,1723610424567,-500.0,0.00014783,2]
[334861490,1723610424601,-500.0,0.00014783,2]
[334861491,1723610424635,-3801.52,0.00014783,2]
[334861492,1723610424669,-500.0,0.00014783,2]
[334861493,1723610424702,-500.0,0.00014783,2]
[334861494,1723610424736,-500.0,0.00014783,2]
[334861495,1723610424768,-1140.71,0.00014783,2]
[334861496,1723610424801,-500.0,0.00014783,2]
[334861497,1723610424838,-500.0,0.00014783,2]
[334861498,1723610424874,-500.0,0.00014783,2]
[334861499,1723610424916,-601.07,0.00014783,2]
[334861500,1723610424958,-500.0,0.00014783,2]
[334861501,1723610424995,-500.0,0.00014783,2]
[334861502,1723610425029,-500.0,0.00014783,2]
[334861503,1723610425065,-540.72,0.00014783,2]
[334861504,1723610425100,-536.87,0.00014783,2]
[334861505,1723610425136,-500.0,0.00014783,2]
[334861506,1723610425170,-5738.68,0.00014783,2]
[334861507,1723610425203,-500.0,0.00014783,2]
[334861508,1723610425237,-500.0,0.00014783,2]
[334861509,1723610425270,-500.0,0.00014783,2]
[334861510,1723610425305,-500.0,0.00014783,2]
[334861511,1723610425340,-50812.7996973,0.00014784,2]
[334861512,1723610425376,-500.0,0.00014793,2]
[334861513,1723610425410,-1084.68,0.00014793,2]
[334861514,1723610425445,-3268.49,0.00014793,2]
[334861515,1723610425479,-1139.73,0.00014793,2]
[334861516,1723610425514,-1523.57,0.00014793,2]
[334861517,1723610425550,-500.0,0.00014793,2]
[334861518,1723610425585,-715.36,0.00014793,2]
[334861519,1723610425619,-697.5,0.00014793,2]
[334861520,1723610425653,-2372.08,0.00014793,2]
[334861521,1723610425691,-784.76,0.00014793,2]
[334861522,1723610425728,-668.75,0.00014793,2]
[334861523,1723610425765,-887.31,0.00014793,2]
[334861524,1723610425801,-500.0,0.00014793,2]
[334861525,1723610425837,-500.0,0.00014793,2]
[334861526,1723610425872,-3947.46,0.00014793,2]
[334861527,1723610425911,-786.87,0.00014793,2]
[334861528,1723610425947,-1530.85,0.00014793,2]
[334861529,1723610425985,-2709.36,0.00014793,2]
[334861530,1723610426022,-1071.56,0.00014793,2]
[334861531,1723610426060,-500.0,0.00014793,2]
[334861532,1723610426099,-500.0,0.00014793,2]
[334861533,1723610426137,-1642.42,0.00014793,2]
[334861534,1723610426173,-752.3,0.00014793,2]
[334861535,1723610426210,-1050.5,0.00014793,2]
[334861536,1723610426248,-500.0,0.00014793,2]
[334861537,1723610426286,-1105.42,0.00014793,2]
[334861538,1723610426321,-500.0,0.00014793,2]
[334861539,1723610426361,-1821.8,0.00014793,2]
[334861540,1723610426398,-4627.76,0.00014793,2]
[334861541,1723610426435,-2808.4,0.00014793,2]
[334861542,1723610426472,-8746.12,0.00014793,2]
[334861543,1723610426513,-733.21,0.00014793,2]
[334861544,1723610426553,-1305.85,0.00014793,2]
[334861545,1723610426590,-500.0,0.00014793,2]
[334861546,1723610426626,-1772.16,0.00014793,2]
[334861547,1723610426661,-1288.27,0.00014793,2]
[334861548,1723610426696,-500.0,0.00014793,2]
[334861549,1723610426732,-4037.13,0.00014793,2]
[334861550,1723610426768,-1819.43,0.00014793,2]
[334861551,1723610426803,-949.83,0.00014793,2]
[334861552,1723610426839,-550.1,0.00014793,2]
[334861553,1723610426876,-3010.27,0.00014793,2]
[334861554,1723610426915,-2092.38,0.00014793,2]
[334861555,1723610426950,-644.54,0.00014793,2]
[334861556,1723610426986,-500.0,0.00014793,2]
[334861557,1723610427021,-2270.92,0.00014793,2]
[334861558,1723610427057,-500.0,0.00014794,2]
[334861559,1723610427092,-500.0,0.00014794,2]
[334861560,1723610427126,-639.34457424,0.00014794,2]
[334861561,1723610427160,-1212.31,0.00014794,2]
[334861562,1723610427195,-500.0,0.00014794,2]
[334861563,1723610427232,-551.86,0.00014794,2]
[334861564,1723610427266,-500.0,0.00014794,2]
[334861565,1723610427301,-586.87842002,0.00014794,2]
[334861566,1723610427335,-500.0,0.00014794,2]
[334861567,1723610427369,-500.0,0.00014794,2]
[334861568,1723610427407,-159.84369649,0.00014794,2]
[334861569,1723610427443,-629.7,0.00014794,2]
[334861570,1723610427481,-500.0,0.00014794,2]
[334861571,1723610427517,-500.0,0.00014794,2]
[334861572,1723610427553,-1265.53,0.00014794,2]
[334861573,1723610427587,-659.58,0.00014794,2]
[334861574,1723610427622,-547.34,0.00014794,2]
[334861575,1723610427656,-500.0,0.00014794,2]
[334861576,1723610427889,-500.0,0.00014794,2]
[334861577,1723610427927,-544.44,0.00014794,2]
[334861578,1723610427962,-699.26,0.00014794,2]
[334861579,1723610427996,-500.0,0.00014794,2]
[334861580,1723610428033,-500.0,0.00014794,2]
[334861581,1723610428071,-1003.73,0.00014794,2]
[334861582,1723610428106,-500.0,0.00014794,2]
[334861583,1723610428142,-568.78,0.00014794,2]
[334861584,1723610428179,-1769.92,0.00014794,2]
[334861585,1723610428212,-500.0,0.00014794,2]
[334861586,1723610428246,-614.06,0.00014794,2]
[334861587,1723610428281,-655.09,0.00014794,2]
[334861588,1723610428314,-500.0,0.00014794,2]
[334861589,1723610428347,-942.88,0.00014794,2]
[334861590,1723610428382,-500.0,0.00014794,2]
[334861591,1723610428414,-724.39,0.00014794,2]
[334861592,1723610428448,-500.0,0.00014794,2]
[334861593,1723610428480,-500.0,0.00014794,2]
[334861594,1723610428514,-500.0,0.00014794,2]
[334861595,1723610428547,-500.0,0.00014794,2]
[334861596,1723610428581,-500.0,0.00014794,2]
[334861597,1723610428612,-500.0,0.00014794,2]
[334861598,1723610428645,-520.36,0.00014794,2]
[334861599,1723610428680,-500.0,0.00014794,2]
[334861600,1723610428713,-500.0,0.00014794,2]
[334861601,1723610428748,-500.0,0.00014794,2]
[334861602,1723610428783,-686.53,0.00014794,2]
[334861603,1723610428815,-765.19,0.00014794,2]
[334861604,1723610428846,-500.0,0.00014794,2]
[334861605,1723610428880,-933.79,0.00014794,2]
[334861606,1723610428913,-500.0,0.00014794,2]
[334861607,1723610428949,-500.0,0.00014794,2]
[334861608,1723610428984,-673.1,0.00014794,2]
[334861609,1723610429020,-685.05,0.00014794,2]
[334861610,1723610429055,-657.67,0.00014794,2]
[334861611,1723610429089,-500.0,0.00014794,2]
[334861612,1723610429124,-500.0,0.00014794,2]
[334861613,1723610429162,-500.0,0.00014794,2]
[334861614,1723610429196,-593.13,0.00014794,2]
[334861615,1723610429231,-852.01,0.00014794,2]
[334861616,1723610429266,-500.0,0.00014794,2]
[334861617,1723610429300,-500.0,0.00014794,2]
[334861618,1723610429334,-933.89,0.00014794,2]
[334861619,1723610429368,-500.0,0.00014794,2]
[334861620,1723610429409,-500.0,0.00014794,2]
[334861621,1723610429445,-500.0,0.00014794,2]
[334861622,1723610429481,-500.0,0.00014794,2]
[334861623,1723610429517,-1183.47,0.00014794,2]
[334861624,1723610429552,-777.9,0.00014794,2]
[334861625,1723610429592,-500.0,0.00014794,2]
[334861626,1723610429628,-948.26,0.00014794,2]
[334861627,1723610429662,-500.0,0.00014794,2]
[334861628,1723610429699,-850.02,0.00014794,2]
[334861629,1723610429732,-500.0,0.00014794,2]
[334861630,1723610429772,-500.0,0.00014794,2]
[334861631,1723610429806,-500.0,0.00014794,2]
[334861632,1723610429839,-1924.09,0.00014794,2]
[334861633,1723610429872,-500.0,0.00014794,2]
[334861634,1723610429905,-850.21,0.00014794,2]
[334861635,1723610429939,-500.0,0.00014794,2]
[334861636,1723610429974,-500.0,0.00014794,2]
[334861637,1723610430008,-500.0,0.00014794,2]
[334861638,1723610430041,-624.25,0.00014794,2]
[334861639,1723610430074,-788.32,0.00014794,2]
[334861640,1723610430107,-500.0,0.00014794,2]
[334861641,1723610430142,-500.0,0.00014794,2]
[334861642,1723610430176,-500.0,0.00014794,2]
[334861643,1723610430210,-809.9,0.00014794,2]
[334861644,1723610430247,-500.0,0.00014794,2]
[334861645,1723610430283,-500.0,0.00014794,2]
[334861646,1723610430317,-500.0,0.00014794,2]
[334861647,1723610430352,-500.0,0.00014794,2]
[334861648,1723610430387,-500.0,0.00014794,2]
[334861649,1723610430421,-500.0,0.00014794,2]
[334861650,1723610430455,-533.45,0.00014794,2]
[334861651,1723610430488,-500.0,0.00014794,2]
[334861652,1723610430520,-500.0,0.00014794,2]
[334861653,1723610430557,-522.22,0.00014794,2]
[334861654,1723610430592,-562.7,0.00014794,2]
[334861655,1723610430625,-624.08,0.00014794,2]
[334861656,1723610430658,-596.31,0.00014794,2]
[334861657,1723610430690,-1026.54,0.00014794,2]
[334861658,1723610430723,-735.05,0.00014794,2]
[334861659,1723610430755,-500.0,0.00014794,2]
[334861660,1723610430792,-500.0,0.00014794,2]
[334861661,1723610430832,-518.41,0.00014794,2]
[334861662,1723610430868,-500.0,0.00014794,2]
[334861663,1723610430902,-1441.9,0.00014794,2]
[334861664,1723610430936,-500.0,0.00014794,2]
[334861665,1723610430974,-664.26,0.00014794,2]
[334861666,1723610431007,-631.26,0.00014794,2]
[334861667,1723610431045,-551.67,0.00014794,2]
[334861668,1723610431079,-706.5,0.00014794,2]
[334861669,1723610431115,-516.3528006,0.00014794,2]
[334861670,1723610431150,-500.0,0.00014794,2]
[334861671,1723610431188,-585.17,0.00014794,2]
[334861672,1723610431222,-500.0,0.00014794,2]
[334861673,1723610431256,-654.12,0.00014794,2]
[334861674,1723610431290,-1011.87,0.00014794,2]
[334861675,1723610431323,-500.0,0.00014794,2]
[334861676,1723610431355,-602.48832988,0.00014794,2]
[334861677,1723610431391,-680.73,0.00014794,2]
[334861678,1723610431424,-797.52,0.00014794,2]
[334861679,1723610431458,-500.0,0.00014794,2]
[334861680,1723610431493,-500.0,0.00014794,2]
[334861681,1723610431527,-910.84,0.00014794,2]
[334861682,1723610431561,-716.3,0.00014794,2]
[334861683,1723610431595,-1061.24,0.00014794,2]
[334861684,1723610431627,-500.0,0.00014794,2]
[334861685,1723610431661,-500.0,0.00014794,2]
[334861686,1723610431695,-528.22,0.00014794,2]
[334861687,1723610431729,-558.86,0.00014794,2]
[334861688,1723610431763,-500.0,0.00014794,2]
[334861689,1723610431797,-500.0,0.00014794,2]
[334861690,1723610431830,-1221.9,0.00014794,2]
[334861691,1723610431867,-541.84,0.00014794,2]
[334861692,1723610431902,-590.98,0.00014794,2]
[334861693,1723610431939,-500.0,0.00014794,2]
[334861694,1723610431973,-619.99,0.00014794,2]